fUST/lending_fUST_20250221
["ID","MTS","AMOUNT","RATE_DAILY","PERIOD"]
[353855291,1740095452784,-2226.56,0.00014684,2]
[353855292,1740095452794,-506.77,0.00014684,2]
[353855293,1740095452804,-1934.19,0.00014684,2]
[353855294,1740095452814,-2190.09,0.00014684,2]
[353855295,1740095452823,-500.0,0.00014684,2]
[353855296,1740095452832,-5448.61,0.00014684,2]
[353855297,1740095452842,-522.5,0.00014684,2]
[353855298,1740095452852,-700.96,0.00014684,2]
[353855299,1740095452862,-16769.03,0.00014684,2]
[353855300,1740095452871,-500.0,0.00014684,2]
[353855301,1740095452880,-1735.92,0.00014684,2]
[353855302,1740095452890,-367.14606317,0.00014684,2]
[353855303,1740095452900,-500.0,0.00014684,2]
[353855304,1740095452910,-836.75,0.00014684,2]
[353855305,1740095452919,-1956.0,0.00014684,2]
[353855306,1740095452928,-213.81193211,0.00014684,2]
[353855307,1740095452937,-500.0,0.00014684,2]
[353855308,1740095452947,-1000.0,0.00014721,2]
[353855309,1740095452956,-500.0,0.00014721,2]
[353855310,1740095452966,-500.0,0.00014721,2]
[353855311,1740095452976,-500.0,0.00014721,2]
[353855312,1740095452985,-1000.0,0.00014721,2]
[353855313,1740095452994,-587.96596498,0.00014721,2]
[353855314,1740095453004,-621.70952141,0.00014721,2]
[353855315,1740095453014,-1000.0,0.00014721,2]
[353855316,1740095453024,-500.0,0.00014721,2]
[353855317,1740095453035,-1000.0,0.00014721,2]
[353855318,1740095453045,-1000.0,0.00014721,2]
[353855319,1740095453056,-1000.0,0.00014721,2]
[353855320,1740095453068,-1000.0,0.00014721,2]
[353855321,1740095453077,-508.60259608,0.00014721,2]
[353855322,1740095453087,-1000.0,0.00014721,2]
[353855323,1740095453096,-1000.0,0.00014721,2]
[353855324,1740095453107,-1000.0,0.00014721,2]
[353855325,1740095453116,-1000.0,0.00014721,2]
[353855326,1740095453126,-2200.0,0.00014756,2]
[353855327,1740095453136,-500.71510411,0.00014766,2]
[353855328,1740095453146,-1622.86495749,0.00014767,2]
[353855329,1740095453155,-500.0,0.00014767,2]
[353855330,1740095453164,-500.0,0.00014767,2]
[353855331,1740095453174,-2500.0,0.00014767,2]
[353855332,1740095453185,-597.02,0.00014767,2]
[353855333,1740095453196,-770.1,0.00014767,2]
[353855334,1740095453206,-723.58,0.00014767,2]
[353855335,1740095453215,-534.41,0.00014767,2]
[353855336,1740095453224,-500.0,0.00014767,2]
[353855337,1740095453235,-967.39,0.00014767,2]
[353855338,1740095453244,-549.45,0.00014767,2]
[353855339,1740095453254,-1103.23,0.00014767,2]
[353855340,1740095453263,-500.0,0.00014767,2]
[353855341,1740095453272,-513.89354345,0.00014767,2]
[353855342,1740095453281,-560.37,0.00014767,2]
[353855343,1740095453291,-676.39,0.00014767,2]
[353855344,1740095453300,-541.38,0.00014767,2]
[353855345,1740095453310,-500.5,0.00014767,2]
[353855346,1740095453319,-503.8,0.00014767,2]
[353855347,1740095453329,-1047.84,0.00014767,2]
[353855348,1740095453339,-500.0,0.00014767,2]
[353855349,1740095453348,-841.65,0.00014767,2]
[353855350,1740095453357,-500.0,0.00014767,2]
[353855351,1740095453368,-500.0,0.00014767,2]
[353855352,1740095453377,-570.4,0.00014767,2]
[353855353,1740095453389,-500.0,0.00014767,2]
[353855354,1740095453399,-500.0,0.00014767,2]
[353855355,1740095453408,-500.0,0.00014767,2]
[353855356,1740095453417,-1938.37,0.00014767,2]
[353855357,1740095453427,-541.58802405,0.00014767,2]
[353855358,1740095453437,-500.0,0.00014767,2]
[353855359,1740095453446,-593.82,0.00014767,2]
[353855360,1740095453455,-152.137845,0.00014767,2]
[353855361,1740095453464,-7050.85,0.00014767,2]
[353855362,1740095453474,-151.0,0.00014767,2]
[353855363,1740095453484,-2996.8,0.00014767,2]
[353855364,1740095453492,-1145.47,0.00014767,2]
[353855365,1740095453501,-1487.23,0.00014767,2]
[353855366,1740095453510,-3493.13,0.00014767,2]
[353855367,1740095453519,-1176.19,0.00014767,2]
[353855368,1740095453529,-38310.27,0.00014767,2]
[353855369,1740095453538,-795.74,0.00014767,2]
[353855370,1740095453548,-500.0,0.00014767,2]
[353855371,1740095453557,-1798.11,0.00014767,2]
[353855372,1740095453567,-503.03,0.00014767,2]
[353855373,1740095453577,-13509.4,0.00014767,2]
[353855374,1740095453586,-2522.59,0.00014767,2]
[353855375,1740095453596,-935.19,0.00014767,2]
[353855376,1740095453606,-1508.34,0.00014767,2]
[353855377,1740095453615,-840.39,0.00014767,2]
[353855378,1740095453625,-1209.86,0.00014767,2]
[353855379,1740095453635,-1181.45,0.00014767,2]
[353855380,1740095453645,-3237.47,0.00014767,2]
[353855381,1740095453654,-6388.26,0.00014767,2]
[353855382,1740095453664,-509.15,0.00014767,2]
[353855383,1740095453673,-3258.4,0.00014767,2]
[353855384,1740095453683,-3411.37,0.00014767,2]
[353855385,1740095453693,-539.08,0.00014767,2]
[353855386,1740095453702,-633.3,0.00014767,2]
[353855387,1740095453712,-500.0,0.00014767,2]
[353855388,1740095453721,-1844.13,0.00014767,2]
[353855389,1740095453732,-1148.55,0.00014767,2]
[353855390,1740095453743,-793.49,0.00014767,2]
[353855391,1740095453753,-610.58,0.00014767,2]
[353855392,1740095453762,-1904.41,0.00014767,2]
[353855393,1740095453771,-1016.61,0.00014767,2]
[353855394,1740095453782,-537.73,0.00014767,2]
[353855395,1740095453791,-2226.56,0.00014767,2]
[353855396,1740095453800,-506.77,0.00014767,2]
[353855397,1740095453810,-1934.19,0.00014767,2]
[353855398,1740095453820,-2190.09,0.00014767,2]
[353855399,1740095453830,-5448.61,0.00014767,2]
[353855400,1740095453839,-500.0,0.00014767,2]
[353855401,1740095453849,-522.5,0.00014767,2]
[353855402,1740095453858,-700.96,0.00014767,2]
[353855403,1740095453867,-16769.03,0.00014767,2]
[353855404,1740095453876,-500.0,0.00014767,2]
[353855405,1740095453885,-1735.92,0.00014767,2]
[353855406,1740095453896,-500.0,0.00014767,2]
[353855407,1740095453905,-836.75,0.00014767,2]
[353855408,1740095453915,-1956.0,0.00014767,2]
[353855409,1740095453925,-500.0,0.00014767,2]
[353855410,1740095453935,-22624.05414412,0.00014782,2]
[353855411,1740095454050,-150.0,0.00014788,2]
[353855412,1740095454064,-538.0,0.00014788,2]
[353855413,1740095454074,-1969.0,0.00014788,2]
[353855414,1740095454085,-2287.0,0.00014788,2]
[353855415,1740095454097,-396.0,0.00014788,2]
[353855416,1740095454106,-150.0,0.00014788,2]
[353855417,1740095454115,-189.0,0.000148,2]
[353855418,1740095454125,-151.323662,0.000148,2]
[353855419,1740095454134,-152.0,0.000148,2]
[353855420,1740095454146,-622.0,0.000148,2]
[353855421,1740095454155,-1020.454338,0.00014803,2]
[353855422,1740095454165,-465.10366637,0.00014819,2]
[353855423,1740095454174,-500.0,0.00014849,2]
[353855424,1740095454184,-500.0,0.00014849,2]
[353855425,1740095454194,-597.02,0.00014849,2]
[353855426,1740095454204,-770.1,0.00014849,2]
[353855427,1740095454213,-723.58,0.00014849,2]
[353855428,1740095454223,-534.41,0.00014849,2]
[353855429,1740095454233,-500.0,0.00014849,2]
[353855430,1740095454242,-967.39,0.00014849,2]
[353855431,1740095454251,-549.45,0.00014849,2]
[353855432,1740095454261,-1103.23,0.00014849,2]
[353855433,1740095454270,-500.0,0.00014849,2]
[353855434,1740095454280,-560.37,0.00014849,2]
[353855435,1740095454289,-676.39,0.00014849,2]
[353855436,1740095454299,-541.38,0.00014849,2]
[353855437,1740095454308,-503.8,0.00014849,2]
[353855438,1740095454317,-1047.84,0.00014849,2]
[353855439,1740095454327,-500.0,0.00014849,2]
[353855440,1740095454336,-841.65,0.00014849,2]
[353855441,1740095454345,-500.0,0.00014849,2]
[353855442,1740095454354,-232.94,0.00014849,2]
[353855443,1740095454363,-570.4,0.00014849,2]
[353855444,1740095454376,-500.0,0.00014849,2]
[353855445,1740095454385,-500.0,0.00014849,2]
[353855446,1740095454394,-500.0,0.00014849,2]
[353855447,1740095454404,-1938.37,0.00014849,2]
[353855448,1740095454414,-555.04164495,0.00014849,2]
[353855449,1740095454423,-593.82,0.00014849,2]
[353855450,1740095454433,-7050.85,0.00014849,2]
[353855451,1740095454442,-2996.8,0.00014849,2]
[353855452,1740095454454,-1145.47,0.00014849,2]
[353855453,1740095454468,-1487.23,0.00014849,2]
[353855454,1740095454480,-3493.13,0.00014849,2]
[353855455,1740095454490,-1176.19,0.00014849,2]
[353855456,1740095454499,-38310.27,0.00014849,2]
[353855457,1740095454509,-795.74,0.00014849,2]
[353855458,1740095454518,-500.0,0.00014849,2]
[353855459,1740095454528,-1798.11,0.00014849,2]
[353855460,1740095454537,-503.03,0.00014849,2]
[353855461,1740095454547,-13509.4,0.00014849,2]
[353855462,1740095454556,-2522.59,0.00014849,2]
[353855463,1740095454565,-935.19,0.00014849,2]
[353855464,1740095454575,-1508.34,0.00014849,2]
[353855465,1740095454584,-840.39,0.00014849,2]
[353855466,1740095454593,-1209.86,0.00014849,2]
[353855467,1740095454602,-1181.45,0.00014849,2]
[353855468,1740095454611,-3237.47,0.00014849,2]
[353855469,1740095454621,-6388.26,0.00014849,2]
[353855470,1740095454630,-509.15,0.00014849,2]
[353855471,1740095454639,-3258.4,0.00014849,2]
[353855472,1740095454648,-3411.37,0.00014849,2]
[353855473,1740095454657,-539.08,0.00014849,2]
[353855474,1740095454667,-633.3,0.00014849,2]
[353855475,1740095454676,-500.0,0.00014849,2]
[353855476,1740095454685,-1844.13,0.00014849,2]
[353855477,1740095454695,-1148.55,0.00014849,2]
[353855478,1740095454704,-793.49,0.00014849,2]
[353855479,1740095454714,-610.58,0.00014849,2]
[353855480,1740095454723,-1904.41,0.00014849,2]
[353855481,1740095454733,-1016.61,0.00014849,2]
[353855482,1740095454743,-537.73,0.00014849,2]
[353855483,1740095454752,-2226.56,0.00014849,2]
[353855484,1740095454762,-506.77,0.00014849,2]
[353855485,1740095454772,-151.0,0.00014849,2]
[353855486,1740095454782,-1934.19,0.00014849,2]
[353855487,1740095454791,-151.0,0.00014849,2]
[353855488,1740095454800,-2190.09,0.00014849,2]
[353855489,1740095454810,-5448.61,0.00014849,2]
[353855490,1740095454819,-500.0,0.00014849,2]
[353855491,1740095454829,-151.0,0.00014849,2]
[353855492,1740095454838,-522.5,0.00014849,2]
[353855493,1740095454848,-700.96,0.00014849,2]
[353855494,1740095454857,-224.336594,0.00014849,2]
[353855495,1740095454867,-224.336594,0.00014849,2]
[353855496,1740095454876,-16769.03,0.00014849,2]
[353855497,1740095454886,-500.0,0.00014849,2]
[353855498,1740095454895,-1735.92,0.00014849,2]
[353855499,1740095454904,-201.922182,0.00014849,2]
[353855500,1740095454914,-446.15668326,0.00014849,2]
[353855501,1740095454925,-836.75,0.00014849,2]
[353855502,1740095454934,-1956.0,0.00014849,2]
[353855503,1740095454944,-500.0,0.00014849,2]
[353855504,1740095454954,-2000.0,0.000149,2]
[353855505,1740095454964,-150.0,0.000149,2]
[353855506,1740095454974,-151.0,0.000149,2]
[353855507,1740095454983,-196.012323,0.000149,2]
[353855508,1740095454993,-151.0,0.000149,2]
[353855509,1740095455002,-158.866005,0.000149,2]
[353855510,1740095455011,-151.0,0.000149,2]
[353855511,1740095455021,-151.0,0.000149,2]
[353855512,1740095455031,-1714.212,0.000149,2]
[353855513,1740095455041,-500.0,0.00014931,2]
[353855514,1740095455050,-500.0,0.00014931,2]
[353855515,1740095455063,-150.2,0.00014931,2]
[353855516,1740095455073,-597.02,0.00014931,2]
[353855517,1740095455083,-770.1,0.00014931,2]
[353855518,1740095455092,-723.58,0.00014931,2]
[353855519,1740095455103,-534.41,0.00014931,2]
[353855520,1740095455112,-500.0,0.00014931,2]
[353855521,1740095455120,-967.39,0.00014931,2]
[353855522,1740095455132,-549.45,0.00014931,2]
[353855523,1740095455141,-1103.23,0.00014931,2]
[353855524,1740095455152,-507.63413278,0.00014931,2]
[353855525,1740095455162,-560.37,0.00014931,2]
[353855526,1740095455172,-676.39,0.00014931,2]
[353855527,1740095455183,-541.38,0.00014931,2]
[353855528,1740095455194,-503.8,0.00014931,2]
[353855529,1740095455205,-1047.84,0.00014931,2]
[353855530,1740095455216,-500.0,0.00014931,2]
[353855531,1740095455226,-841.65,0.00014931,2]
[353855532,1740095455235,-500.0,0.00014931,2]
[353855533,1740095455245,-570.4,0.00014931,2]
[353855534,1740095455254,-500.0,0.00014931,2]
[353855535,1740095455264,-500.0,0.00014931,2]
[353855536,1740095455273,-500.0,0.00014931,2]
[353855537,1740095455283,-1938.37,0.00014931,2]
[353855538,1740095455292,-593.82,0.00014931,2]
[353855539,1740095455302,-7050.85,0.00014931,2]
[353855540,1740095455312,-2996.8,0.00014931,2]
[353855541,1740095455321,-1145.47,0.00014931,2]
[353855542,1740095455331,-1487.23,0.00014931,2]
[353855543,1740095455341,-3493.13,0.00014931,2]
[353855544,1740095455351,-1176.19,0.00014931,2]
[353855545,1740095455361,-38310.27,0.00014931,2]
[353855546,1740095455371,-795.74,0.00014931,2]
[353855547,1740095455381,-500.0,0.00014931,2]
[353855548,1740095455391,-1798.11,0.00014931,2]
[353855549,1740095455402,-503.03,0.00014931,2]
[353855550,1740095455411,-13509.4,0.00014931,2]
[353855551,1740095455422,-2522.59,0.00014931,2]
[353855552,1740095455433,-935.19,0.00014931,2]
[353855553,1740095455443,-1508.34,0.00014931,2]
[353855554,1740095455453,-840.39,0.00014931,2]
[353855555,1740095455462,-1181.45,0.00014931,2]
[353855556,1740095455471,-1209.86,0.00014931,2]
[353855557,1740095455481,-3237.47,0.00014931,2]
[353855558,1740095455491,-6388.26,0.00014931,2]
[353855559,1740095455501,-509.15,0.00014931,2]
[353855560,1740095455512,-500.0,0.00014931,2]
[353855561,1740095455522,-500.0,0.00014931,2]
[353855562,1740095455533,-150.2,0.00014931,2]
[353855563,1740095455543,-3258.4,0.00014931,2]
[353855564,1740095455553,-150.2,0.00014931,2]
[353855565,1740095455563,-150.2,0.00014931,2]
[353855566,1740095455573,-150.2,0.00014931,2]
[353855567,1740095455582,-3411.37,0.00014931,2]
[353855568,1740095455592,-539.08,0.00014931,2]
[353855569,1740095455602,-633.3,0.00014931,2]
[353855570,1740095455612,-500.0,0.00014931,2]
[353855571,1740095455622,-1844.13,0.00014931,2]
[353855572,1740095455632,-1148.55,0.00014931,2]
[353855573,1740095455642,-793.49,0.00014931,2]
[353855574,1740095455652,-610.58,0.00014931,2]
[353855575,1740095455662,-1904.41,0.00014931,2]
[353855576,1740095455671,-1016.61,0.00014931,2]
[353855577,1740095455682,-537.73,0.00014931,2]
[353855578,1740095455692,-2226.56,0.00014931,2]
[353855579,1740095455702,-506.77,0.00014931,2]
[353855580,1740095455711,-1934.19,0.00014931,2]
[353855581,1740095455720,-2190.09,0.00014931,2]
[353855582,1740095455730,-5448.61,0.00014931,2]
[353855583,1740095455739,-500.0,0.00014931,2]
[353855584,1740095455749,-522.5,0.00014931,2]
[353855585,1740095455760,-700.96,0.00014931,2]
[353855586,1740095455770,-16769.03,0.00014931,2]
[353855587,1740095455779,-500.0,0.00014931,2]
[353855588,1740095455789,-1735.92,0.00014931,2]
[353855589,1740095455798,-836.75,0.00014931,2]
[353855590,1740095455808,-1956.0,0.00014931,2]
[353855591,1740095455819,-500.0,0.00014931,2]
[353855592,1740095455830,-500.0,0.00014931,2]
[353855593,1740095455840,-150.2,0.00014931,2]
[353855594,1740095455851,-500.0,0.00014931,2]
[353855595,1740095455860,-500.0,0.00014973,2]
[353855596,1740095455870,-121182.76607541,0.00015,2]
[353855597,1740095456093,-500.0,0.00013698,2]
[353855599,1740095682848,500.0,7.826e-05,2]
[353855607,1740096246539,278.969951,9.041e-05,2]
[353855610,1740096324217,164.0,0.00019,120]
[353855659,1740096632429,-262.56,0.00010959,2]
[353855660,1740096632439,-487.38874887,0.00012719,2]
[353855661,1740096632484,-6258.58716913,0.00012719,2]
[353855662,1740096632494,-584.31616661,0.00013598,2]
[353855663,1740096632504,-181.2,0.0001369,2]
[353855664,1740096632514,-500.0,0.00013697,2]
[353855665,1740096632524,-184.37979455,0.00013697,2]
[353855666,1740096632534,-385.66238557,0.00013697,2]
[353855667,1740096632545,-500.0,0.00013697,2]
[353855668,1740096632554,-500.0,0.00013697,2]
[353855669,1740096632564,-500.0,0.00013697,2]
[353855670,1740096632573,-500.0,0.00013697,2]
[353855672,1740096632583,-464.87653806,0.00013697,2]
[353855674,1740096632601,-35.12346194,0.00013697,2]
[353855675,1740096632611,-276.39338381,0.00013697,2]
[353855723,1740096638247,-223.60661619,0.00013697,2]
[353855724,1740096638257,-500.0,0.00013697,2]
[353855725,1740096638267,-500.0,0.00013697,2]
[353855726,1740096638276,-500.0,0.00013697,2]
[353855727,1740096638286,-284.60810812,0.00013697,2]
[353855728,1740096638296,-500.0,0.00013698,2]
[353855729,1740096638306,-500.0,0.00013698,2]
[353855730,1740096638315,-686.6,0.00013698,2]
[353855731,1740096638325,-500.0,0.00013698,2]
[353855732,1740096638335,-1000.0,0.00013698,2]
[353855733,1740096638345,-500.0,0.00013698,2]
[353855734,1740096638354,-500.0,0.00013698,2]
[353855735,1740096638363,-500.0,0.00013698,2]
[353855736,1740096638373,-500.0,0.00013698,2]
[353855737,1740096638383,-500.0,0.00013698,2]
[353855738,1740096638393,-500.0,0.00013698,2]
[353855739,1740096638402,-500.0,0.00013698,2]
[353855740,1740096638412,-296.54801846,0.00013698,2]
[353855741,1740096638422,-500.0,0.00013698,2]
[353855742,1740096638432,-500.0,0.00013698,2]
[353855743,1740096638441,-500.0,0.00013698,2]
[353855744,1740096638452,-500.0,0.00013698,2]
[353855745,1740096638464,-506.68033263,0.00013698,2]
[353855746,1740096638474,-270.37021015,0.00013698,2]
[353855747,1740096638492,-229.62978985,0.00013698,2]
[353855748,1740096638503,-500.0,0.00013698,2]
[353855749,1740096638512,-1606.58,0.00013698,2]
[353855750,1740096638522,-500.0,0.00013698,2]
[353855751,1740096638531,-242.72906089,0.00013698,2]
[353855752,1740096638543,-500.0,0.00013698,2]
[353855753,1740096638553,-500.0,0.00013698,2]
[353855754,1740096638562,-500.0,0.00013698,2]
[353855755,1740096638572,-751.56,0.00013698,2]
[353855756,1740096638582,-500.0,0.00013698,2]
[353855757,1740096638591,-500.0,0.00013698,2]
[353855758,1740096638601,-500.0,0.00013698,2]
[353855759,1740096638610,-500.0,0.00013698,2]
[353855760,1740096638620,-964.76,0.00013698,2]
[353855761,1740096638630,-500.0,0.00013698,2]
[353855762,1740096638639,-589.91,0.00013698,2]
[353855763,1740096638650,-500.0,0.00013698,2]
[353855764,1740096638659,-500.0,0.00013698,2]
[353855765,1740096638669,-634.48,0.00013698,2]
[353855766,1740096638679,-500.0,0.00013698,2]
[353855767,1740096638688,-687.91,0.00013698,2]
[353855768,1740096638699,-500.0,0.00013698,2]
[353855769,1740096638708,-500.0,0.00013698,2]
[353855770,1740096638717,-500.0,0.00013698,2]
[353855771,1740096638727,-1161.15,0.00013698,2]
[353855772,1740096638737,-647.21,0.00013698,2]
[353855773,1740096638746,-500.0,0.00013698,2]
[353855774,1740096638757,-789.92,0.00013698,2]
[353855775,1740096638767,-1279.72,0.00013698,2]
[353855776,1740096638777,-638.7,0.00013698,2]
[353855777,1740096638787,-500.0,0.00013698,2]
[353855778,1740096638797,-658.92,0.00013698,2]
[353855779,1740096638806,-500.0,0.00013698,2]
[353855780,1740096638816,-596.03,0.00013698,2]
[353855781,1740096638825,-1224.27,0.00013698,2]
[353855782,1740096638835,-500.0,0.00013698,2]
[353855783,1740096638844,-500.0,0.00013698,2]
[353855784,1740096638854,-500.0,0.00013698,2]
[353855785,1740096638864,-500.0,0.00013698,2]
[353855786,1740096638875,-901.49,0.00013698,2]
[353855787,1740096638887,-500.0,0.00013698,2]
[353855788,1740096638897,-558.57,0.00013698,2]
[353855789,1740096638906,-500.0,0.00013698,2]
[353855790,1740096638916,-807.14,0.00013698,2]
[353855791,1740096638926,-500.0,0.00013698,2]
[353855792,1740096638935,-500.0,0.00013698,2]
[353855793,1740096638949,-588.3,0.00013698,2]
[353855794,1740096638961,-500.0,0.00013698,2]
[353855795,1740096639134,-500.0,0.00013698,2]
[353855796,1740096639143,-500.0,0.00013698,2]
[353855797,1740096639153,-500.0,0.00013698,2]
[353855798,1740096639163,-504.82388529,0.00013698,2]
[353855799,1740096639172,-500.0,0.00013698,2]
[353855800,1740096639181,-500.0,0.00013698,2]
[353855801,1740096639191,-500.0,0.00013698,2]
[353855802,1740096639200,-500.0,0.00013698,2]
[353855803,1740096639210,-500.0,0.00013698,2]
[353855804,1740096639219,-500.0,0.00013698,2]
[353855805,1740096639229,-500.0,0.00013698,2]
[353855806,1740096639239,-500.0,0.00013698,2]
[353855807,1740096639248,-2112.09,0.00013698,2]
[353855808,1740096639257,-500.0,0.00013698,2]
[353855809,1740096639268,-2172.75,0.00013698,2]
[353855810,1740096639277,-500.0,0.00013698,2]
[353855811,1740096639286,-500.0,0.00013698,2]
[353855812,1740096639295,-528.95,0.00013698,2]
[353855813,1740096639305,-7729.28,0.00013698,2]
[353855814,1740096639314,-500.0,0.00013698,2]
[353855815,1740096639324,-3094.13,0.00013698,2]
[353855816,1740096639333,-1136.15,0.00013698,2]
[353855817,1740096639342,-1486.57,0.00013698,2]
[353855818,1740096639352,-600.33,0.00013698,2]
[353855819,1740096639361,-500.0,0.00013698,2]
[353855820,1740096639370,-500.0,0.00013698,2]
[353855821,1740096639379,-37996.16,0.00013698,2]
[353855822,1740096639388,-3464.25,0.00013698,2]
[353855823,1740096639399,-1175.47,0.00013698,2]
[353855824,1740096639408,-13639.53,0.00013698,2]
[353855825,1740096639417,-1634.77,0.00013698,2]
[353855826,1740096639426,-502.91,0.00013698,2]
[353855827,1740096639435,-500.0,0.00013698,2]
[353855828,1740096639445,-500.0,0.00013698,2]
[353855829,1740096639454,-790.91,0.00013698,2]
[353855830,1740096639466,-1221.06,0.00013698,2]
[353855831,1740096639475,-500.0,0.00013698,2]
[353855832,1740096639485,-1344.49,0.00013698,2]
[353855833,1740096639494,-500.0,0.00013698,2]
[353855834,1740096639505,-622.0,0.00013698,2]
[353855835,1740096639515,-2602.3,0.00013698,2]
[353855836,1740096639525,-500.0,0.00013698,2]
[353855837,1740096639534,-909.59,0.00013698,2]
[353855838,1740096639544,-1558.66,0.00013698,2]
[353855839,1740096639554,-500.0,0.00013698,2]
[353855840,1740096639563,-3345.4,0.00013698,2]
[353855841,1740096639572,-500.0,0.00013698,2]
[353855842,1740096639581,-500.0,0.00013698,2]
[353855843,1740096639591,-500.0,0.00013698,2]
[353855844,1740096639600,-3522.52,0.00013698,2]
[353855845,1740096639610,-500.0,0.00013698,2]
[353855846,1740096639621,-6601.19,0.00013698,2]
[353855847,1740096639630,-554.07,0.00013698,2]
[353855848,1740096639640,-500.0,0.00013698,2]
[353855849,1740096639649,-500.0,0.00013698,2]
[353855850,1740096639659,-682.12,0.00013698,2]
[353855851,1740096639669,-500.0,0.00013698,2]
[353855852,1740096639678,-500.0,0.00013698,2]
[353855853,1740096639688,-3591.47,0.00013698,2]
[353855854,1740096639698,-584.09,0.00013698,2]
[353855855,1740096639707,-657.23,0.00013698,2]
[353855856,1740096639717,-500.0,0.00013698,2]
[353855857,1740096639726,-501.82976864,0.00013698,2]
[353855858,1740096639735,-1996.0,0.00013698,2]
[353855859,1740096639744,-500.0,0.00013698,2]
[353855860,1740096639754,-500.0,0.00013698,2]
[353855861,1740096639763,-855.35,0.00013698,2]
[353855862,1740096639773,-500.0,0.00013698,2]
[353855863,1740096639782,-1243.14,0.00013698,2]
[353855864,1740096639792,-2053.02,0.00013698,2]
[353855865,1740096639801,-500.0,0.00013698,2]
[353855866,1740096639810,-500.0,0.00013698,2]
[353855867,1740096639819,-500.0,0.00013698,2]
[353855868,1740096639828,-2400.28,0.00013698,2]
[353855869,1740096639838,-1084.12,0.00013698,2]
[353855870,1740096639848,-5873.51,0.00013698,2]
[353855871,1740096639861,-500.0,0.00013698,2]
[353855872,1740096639871,-550.36,0.00013698,2]
[353855873,1740096639880,-500.0,0.00013698,2]
[353855874,1740096639890,-500.0,0.00013698,2]
[353855875,1740096639900,-500.0,0.00013698,2]
[353855876,1740096639909,-2528.55,0.00013698,2]
[353855877,1740096639918,-2085.88,0.00013698,2]
[353855878,1740096639928,-500.0,0.00013698,2]
[353855879,1740096639938,-500.0,0.00013698,2]
[353855880,1740096639947,-500.0,0.00013698,2]
[353855881,1740096639956,-567.85,0.00013698,2]
[353855882,1740096639966,-500.0,0.00013698,2]
[353855883,1740096639976,-500.0,0.00013698,2]
[353855884,1740096639985,-500.0,0.00013698,2]
[353855885,1740096639994,-378.3472983,0.00013698,2]
[353855886,1740096640003,-500.0,0.00013698,2]
[353855887,1740096640012,-209.709451,0.00013698,2]
[353855888,1740096640021,-755.6,0.00013698,2]
[353855889,1740096640030,-500.0,0.00013698,2]
[353855890,1740096640040,-500.0,0.00013698,2]
[353855891,1740096640050,-500.0,0.00013698,2]
[353855892,1740096640059,-500.0,0.00013698,2]
[353855893,1740096640069,-500.0,0.00013698,2]
[353855894,1740096640081,-500.0,0.00013698,2]
[353855895,1740096640090,-500.0,0.00013698,2]
[353855896,1740096640100,-500.0,0.00013698,2]
[353855897,1740096640109,-500.0,0.00013698,2]